lending/lending_fUSD_20251125
["ID","MTS","AMOUNT","RATE_DAILY","PERIOD"]
[394876354,1764049840236,-160.89755475,0.00019,14]
[394876355,1764049840246,-1219.1179215,0.00019,2]
[394876356,1764049840255,-19570.34643368,0.00019,2]
[394876357,1764049840265,-151.0,0.00019,2]
[394876358,1764049840275,-151.0,0.00019,2]
[394876359,1764049840284,-151.0,0.00019,2]
[394876360,1764049840293,-502.22759428,0.0001917,2]
[394876361,1764049840303,-500.0,0.0001917,2]
[394876362,1764049840312,-500.0,0.0001917,2]
[394876363,1764049840322,-500.0,0.00019178,2]
[394876364,1764049840331,-500.0,0.00019178,2]
[394876365,1764049840341,-272.99,0.00019438,2]
[394876366,1764049840351,-166.66,0.00019527,2]
[394876367,1764049840360,-1607.59314837,0.00019675,2]
[394876368,1764049840369,-1000.0,0.00019718,2]
[394876369,1764049840378,-504.3749649,0.00019718,2]
[394876370,1764049840387,-500.0,0.00019878,2]
[394876371,1764049840397,-500.0,0.00019878,2]
[394876372,1764049840406,-500.0,0.00019878,2]
[394876373,1764049840415,-500.0,0.00019878,2]
[394876374,1764049840424,-500.0,0.00019878,2]
[394876375,1764049840434,-500.0,0.00019878,2]
[394876376,1764049840443,-500.0,0.00019878,2]
[394876377,1764049840452,-500.0,0.00019878,2]
[394876378,1764049840644,-500.0,0.00019878,2]
[394876379,1764049840665,-500.0,0.00019878,2]
[394876380,1764049840675,-500.0,0.00019878,2]
[394876381,1764049840684,-214.47941842,0.00019878,2]
[394876382,1764049840694,-351.88892811,0.00019878,2]
[394876383,1764049840703,-500.0,0.00019878,2]
[394876384,1764049840712,-203.73001397,0.00019878,2]
[394876385,1764049840722,-500.0,0.00019878,2]
[394876386,1764049840732,-500.0,0.00019878,2]
[394876387,1764049840741,-500.0,0.00019878,2]
[394876388,1764049840750,-276.50278841,0.00019878,2]
[394876389,1764049840759,-500.0,0.00019878,2]
[394876390,1764049840769,-276.50278841,0.00019878,2]
[394876391,1764049840778,-151.0,0.00019879,2]
[394876392,1764049840787,-151.0,0.00019879,2]
[394876393,1764049840808,-151.0,0.00019879,2]
[394876394,1764049840818,-1320.0,0.00019879,2]
[394876395,1764049840827,-1601.0,0.00019879,2]
[394876396,1764049840836,-3438.0,0.00019879,2]
[394876397,1764049840845,-1256.0,0.00019879,2]
[394876398,1764049840855,-822.0,0.00019879,2]
[394876399,1764049840864,-794.0,0.00019879,2]
[394876400,1764049840873,-6496.0,0.00019879,2]
[394876401,1764049840882,-2757.555,0.00019879,2]
[394876402,1764049840892,-1194.18,0.00019879,2]
[394876403,1764049840901,-341.28243055,0.000199,3]
[394876404,1764049840910,-576.0,0.00019979,2]
[394876405,1764049840920,-1651.64605407,0.0002,2]
[394876406,1764049840929,-272.99,0.00020116,2]
[394876407,1764049840939,-535.21,0.00020187,2]
[394876408,1764049840949,-582.70813265,0.00020266,2]
[394876409,1764049840959,-151.0,0.00020548,2]
[394876410,1764049840968,-151.0,0.00020548,2]
[394876411,1764049840978,-151.0,0.00020548,2]
[394876412,1764049840987,-151.0,0.00020548,2]
[394876413,1764049840996,-1615.0,0.000207,2]
[394876414,1764049841008,-272.99,0.00020795,2]
[394876415,1764049841018,-384.41640838,0.00020908,2]
[394876416,1764049841028,-153.956112,0.00021189,2]
[394876417,1764049841037,-200.0,0.00021189,2]
[394876418,1764049841046,-176.64,0.0002139,2]
[394876419,1764049841056,-5000.0,0.00021918,2]
[394876420,1764049841065,-284.66044951,0.00021918,2]
[394876422,1764049841074,-427.01065334,0.00021971,2]
[394876423,1764049841084,-195.08,0.00022287,30]
[394876425,1764049841093,-214.26441825,0.00022399,2]
[394876426,1764049841103,-1607.59314837,0.0002245,2]
[394876427,1764049841112,-163.05,0.00022589,2]
[394876428,1764049841122,-352.095,0.00022879,2]
[394876429,1764049841132,-1357.495,0.00022879,2]
[394876430,1764049841141,-1192.0,0.00022879,2]
[394876431,1764049841151,-576.0,0.00022979,2]
[394876432,1764049841160,-640.91,0.00023184,2]
[394876433,1764049841170,-247.39101322,0.00023562,2]
[394876434,1764049841179,-384.41640838,0.00023903,2]
[394876435,1764049841188,-1248.0,0.00024073,2]
[394876436,1764049841198,-1248.0,0.00024073,2]
[394876437,1764049841208,-1248.0,0.00024073,2]
[394876438,1764049841217,-500.0,0.00024233,2]
[394876439,1764049841227,-371.83963865,0.00024303,2]
[394876440,1764049841236,-1615.38967505,0.000244,2]
[394876441,1764049841246,-865.0,0.00024658,2]
[394876442,1764049841255,-865.0,0.00024658,2]
[394876443,1764049841264,-865.0,0.00024658,2]
[394876444,1764049841274,-865.0,0.00024658,2]
[394876445,1764049841283,-865.0,0.00024658,2]
[394876446,1764049841292,-865.0,0.00024658,2]
[394876447,1764049841301,-865.0,0.00024658,2]
[394876448,1764049841311,-865.0,0.00024658,2]
[394876449,1764049841320,-865.0,0.00024658,2]
[394876450,1764049841329,-865.0,0.00024658,2]
[394876451,1764049841340,-865.0,0.00024658,2]
[394876452,1764049841349,-865.0,0.00024658,2]
[394876453,1764049841359,-865.0,0.00024658,2]
[394876454,1764049841368,-865.0,0.00024658,2]
[394876455,1764049841377,-865.0,0.00024658,2]
[394876456,1764049841387,-865.0,0.00024658,2]
[394876457,1764049841396,-865.0,0.00024658,2]
[394876458,1764049841406,-865.0,0.00024658,2]
[394876459,1764049841415,-865.0,0.00024658,2]
[394876460,1764049841424,-153.0,0.00024658,2]
[394876461,1764049841434,-153.0,0.00024658,2]
[394876462,1764049841443,-153.0,0.00024658,2]
[394876463,1764049841453,-153.0,0.00024658,2]
[394876464,1764049841462,-153.0,0.00024658,2]
[394876465,1764049841471,-153.0,0.00024658,2]
[394876466,1764049841480,-171.66,0.00024658,2]
[394876467,1764049841490,-15486.2209895,0.000248,3]
[394876468,1764049841499,-171.66,0.00024932,2]
[394876469,1764049841509,-2212.31728421,0.00024994,3]
[394876470,1764049841518,-1019.4,0.00025005,2]
[394876471,1764049841527,-171.68,0.00025205,2]
[394876472,1764049841536,-1607.59314837,0.00025225,2]
[394876473,1764049841546,-176.64,0.00025668,2]
[394876474,1764049841555,-1192.0,0.00025879,2]
[394876475,1764049841564,-250.0,0.00025949,2]
[394876476,1764049841573,-150.0,0.00025965,2]
[394876477,1764049841583,-1000.0,0.00026239,2]
[394876478,1764049841592,-2212.31728421,0.00026428,3]
[394876479,1764049841601,-150.95458129,0.00026438,2]
[394876480,1764049841611,-293.80543207,0.00026438,2]
[394876481,1764049841620,-150.0,0.00026438,2]
[394876482,1764049841630,-150.0,0.00026438,2]
[394876483,1764049841639,-150.0,0.00026438,2]
[394876484,1764049841648,-150.0,0.00026438,2]
[394876485,1764049841657,-150.0,0.00026438,2]
[394876486,1764049841667,-205.71273916,0.00026438,2]
[394876487,1764049841677,-150.0,0.00026438,2]
[394876488,1764049841686,-150.0,0.00026438,2]
[394876489,1764049841696,-150.0,0.00026438,2]
[394876490,1764049841705,-163.18916229,0.00026514,7]
[394876491,1764049841715,-150.0,0.00026575,2]
[394876492,1764049841724,-150.0,0.00026575,2]
[394876493,1764049841733,-535.21,0.00026676,2]
[394876494,1764049841743,-150.0,0.00026712,2]
[394876495,1764049841752,-150.0,0.00026712,2]
[394876496,1764049841761,-4280.0,0.00026809,2]
[394876497,1764049841771,-150.0,0.00026849,2]
[394876498,1764049841781,-271.16934993,0.00026849,2]
[394876499,1764049841801,-384.41640838,0.00026898,2]
[394876500,1764049841810,-173.12899088,0.00027297,2]
[394876501,1764049841820,-2212.31728421,0.00027387,3]
[394876502,1764049841829,-22123.1728421,0.00027387,3]
[394876503,1764049841839,-500.0,0.00027388,120]
[394876504,1764049841848,-500.0,0.00027396,2]
[394876505,1764049841857,-500.0,0.00027396,2]
[394876506,1764049841867,-5373.39057656,0.00027397,120]
[394876507,1764049841877,-1433.24,0.00027397,2]
[394876508,1764049841888,-500.0,0.00027397,5]
[394876509,1764049841898,-151.906364,0.00027397,7]
[394876510,1764049841908,-151.0,0.00027397,7]
[394876511,1764049841917,-151.0,0.00027397,7]
[394876512,1764049841926,-151.0,0.00027397,7]
[394876513,1764049841935,-151.0,0.00027397,7]
[394876514,1764049841945,-151.0,0.00027397,7]
[394876515,1764049841955,-151.0,0.00027397,7]
[394876516,1764049841964,-157.0067,0.00027397,7]
[394876517,1764049841973,-151.0,0.00027397,7]
[394876518,1764049841982,-152.978624,0.00027397,7]
[394876519,1764049841991,-151.0,0.00027397,7]
[394876520,1764049842001,-184.61468,0.00027397,7]
[394876521,1764049842014,-151.0,0.00027397,7]
[394876522,1764049842024,-151.0,0.00027397,7]
[394876523,1764049842033,-151.0,0.00027397,7]
[394876524,1764049842043,-154.781887,0.00027397,7]
[394876525,1764049842053,-151.0,0.00027397,7]
[394876526,1764049842062,-151.0,0.00027397,7]
[394876527,1764049842071,-151.0,0.00027397,7]
[394876528,1764049842082,-224.107876,0.00027397,7]
[394876529,1764049842091,-156.04983,0.00027397,7]
[394876530,1764049842101,-151.0,0.00027397,7]
[394876531,1764049842110,-165.855032,0.00027397,7]
[394876532,1764049842119,-151.0,0.00027397,7]
[394876533,1764049842129,-151.0,0.00027397,7]
[394876534,1764049842138,-151.0,0.00027397,7]
[394876535,1764049842148,-160.138124,0.00027397,7]
[394876536,1764049842158,-151.0,0.00027397,7]
[394876537,1764049842168,-151.0,0.00027397,7]
[394876538,1764049842178,-151.0,0.00027397,7]
[394876539,1764049842187,-271.160532,0.00027397,7]
[394876540,1764049842196,-151.0,0.00027397,7]
[394876541,1764049842206,-167.701857,0.00027397,7]
[394876542,1764049842216,-151.0,0.00027397,7]
[394876543,1764049842225,-151.0,0.00027397,7]
[394876544,1764049842235,-151.0,0.00027397,7]
[394876545,1764049842244,-151.0,0.00027397,7]
[394876546,1764049842255,-159.569598,0.00027397,7]
[394876547,1764049842265,-151.0,0.00027397,7]
[394876548,1764049842275,-151.0,0.00027397,7]
[394876549,1764049842285,-151.0,0.00027397,7]
[394876550,1764049842294,-151.0,0.00027397,7]
[394876551,1764049842304,-151.0,0.00027397,7]
[394876552,1764049842314,-151.0,0.00027397,7]
[394876553,1764049842323,-151.0,0.00027397,7]
[394876554,1764049842332,-151.0,0.00027397,7]
[394876555,1764049842342,-151.0,0.00027397,7]
[394876556,1764049842351,-151.0,0.00027397,7]
[394876557,1764049842360,-151.0,0.00027397,7]
[394876558,1764049842370,-151.0,0.00027397,7]
[394876559,1764049842379,-241.532676,0.00027397,7]
[394876560,1764049842388,-151.0,0.00027397,7]
[394876561,1764049842398,-151.0,0.00027397,7]
[394876562,1764049842407,-211.68798297,0.00027397,7]
[394876563,1764049842416,-151.0,0.00027397,7]
[394876564,1764049842425,-151.0,0.00027397,7]
[394876566,1764049842435,-151.0,0.00027397,7]
[394876568,1764049842444,-151.0,0.00027397,7]
[394876570,1764049842453,-266.575008,0.00027397,7]
[394876571,1764049842463,-155.601761,0.00027397,7]
[394876572,1764049842473,-151.0,0.00027397,7]
[394876573,1764049842482,-151.0,0.00027397,7]
[394876574,1764049842492,-229.115279,0.00027397,7]
[394876575,1764049842502,-229.115279,0.00027397,7]
[394876576,1764049842511,-229.115279,0.00027397,7]
[394876577,1764049842523,-229.115279,0.00027397,7]
[394876579,1764049842533,-229.115279,0.00027397,7]
[394876581,1764049842543,-229.115279,0.00027397,7]
[394876582,1764049842553,-229.115279,0.00027397,7]
[394876583,1764049842563,-229.115279,0.00027397,7]
[394876584,1764049842573,-229.115279,0.00027397,7]
[394876585,1764049842583,-229.115279,0.00027397,7]
[394876586,1764049842593,-229.115279,0.00027397,7]
[394876587,1764049842603,-229.115279,0.00027397,7]
[394876588,1764049842612,-229.115279,0.00027397,7]
[394876589,1764049842622,-229.115279,0.00027397,7]
[394876590,1764049842632,-229.115279,0.00027397,7]
[394876591,1764049842642,-229.115279,0.00027397,7]
[394876592,1764049842652,-229.115279,0.00027397,7]
[394876593,1764049842662,-229.115279,0.00027397,7]
[394876594,1764049842675,-229.115279,0.00027397,7]
[394876595,1764049842689,-229.115287,0.00027397,7]
[394876596,1764049842698,-151.0,0.00027397,7]
[394876597,1764049842708,-151.0,0.00027397,7]
[394876598,1764049842717,-151.0,0.00027397,7]
[394876599,1764049842727,-151.0,0.00027397,7]
[394876600,1764049842736,-153.364388,0.00027397,7]
[394876601,1764049842746,-151.0,0.00027397,7]
[394876602,1764049842755,-152.366068,0.00027397,7]
[394876603,1764049842764,-255.503854,0.00027397,7]
[394876604,1764049842773,-151.0,0.00027397,7]
[394876605,1764049842782,-151.0,0.00027397,7]
[394876606,1764049842791,-151.0,0.00027397,7]
[394876607,1764049842800,-151.0,0.00027397,7]
[394876608,1764049842809,-151.0,0.00027397,7]
[394876609,1764049842818,-226.392896,0.00027397,7]
[394876610,1764049842828,-211.477428,0.00027397,7]
[394876611,1764049842837,-151.0,0.00027397,7]
[394876612,1764049842847,-151.0,0.00027397,7]
[394876613,1764049842856,-151.0,0.00027397,7]
[394876614,1764049842865,-151.0,0.00027397,7]
[394876615,1764049842875,-151.0,0.00027397,7]
[394876616,1764049842883,-151.0,0.00027397,7]
[394876617,1764049842893,-151.0,0.00027397,7]
[394876618,1764049842902,-151.0,0.00027397,7]
[394876619,1764049842911,-151.0,0.00027397,7]
[394876620,1764049842919,-151.0,0.00027397,7]
[394876621,1764049842929,-151.0,0.00027397,7]
[394876622,1764049842937,-151.0,0.00027397,7]
[394876623,1764049842946,-151.0,0.00027397,7]
[394876624,1764049842956,-151.70689,0.00027397,7]
[394876625,1764049842966,-151.0,0.00027397,7]
[394876626,1764049842975,-162.857691,0.00027397,7]
[394876627,1764049842984,-151.0,0.00027397,7]
[394876628,1764049842994,-151.0,0.00027397,7]
[394876629,1764049843005,-151.0,0.00027397,7]
[394876630,1764049843017,-151.0,0.00027397,7]
[394876631,1764049843026,-151.0,0.00027397,7]
[394876632,1764049843036,-151.0,0.00027397,7]
[394876633,1764049843045,-151.0,0.00027397,7]
[394876634,1764049843054,-151.0,0.00027397,7]
[394876635,1764049843063,-151.0,0.00027397,7]
[394876636,1764049843073,-151.0,0.00027397,7]
[394876637,1764049843082,-151.0,0.00027397,7]
[394876638,1764049843091,-151.0,0.00027397,7]
[394876639,1764049843100,-223.633453,0.00027397,7]
[394876640,1764049843110,-151.0,0.00027397,7]
[394876641,1764049843119,-151.0,0.00027397,7]
[394876642,1764049843128,-151.0,0.00027397,7]
[394876643,1764049843138,-212.636644,0.00027397,7]
[394876644,1764049843148,-151.0,0.00027397,7]
[394876645,1764049843157,-151.0,0.00027397,7]
[394876646,1764049843166,-151.0,0.00027397,7]
[394876647,1764049843176,-151.0,0.00027397,7]
[394876648,1764049843186,-151.0,0.00027397,7]
[394876649,1764049843195,-151.0,0.00027397,7]
[394876650,1764049843205,-151.0,0.00027397,7]
[394876651,1764049843214,-172.037973,0.00027397,7]
[394876652,1764049843223,-151.0,0.00027397,7]
[394876653,1764049843232,-216.656296,0.00027397,7]
[394876654,1764049843242,-151.0,0.00027397,7]
[394876655,1764049843251,-151.0,0.00027397,7]
[394876656,1764049843261,-160.95447,0.00027397,7]
[394876657,1764049843270,-151.0,0.00027397,7]
[394876658,1764049843281,-151.0,0.00027397,7]
[394876659,1764049843290,-151.0,0.00027397,7]
[394876660,1764049843299,-151.0,0.00027397,7]
[394876661,1764049843308,-151.0,0.00027397,7]
[394876662,1764049843318,-151.0,0.00027397,7]
[394876663,1764049843327,-151.0,0.00027397,7]
[394876664,1764049843337,-151.0,0.00027397,7]
[394876665,1764049843345,-151.0,0.00027397,7]
[394876666,1764049843354,-176.94214,0.00027397,7]
[394876667,1764049843363,-151.0,0.00027397,7]
[394876668,1764049843373,-151.0,0.00027397,7]
[394876669,1764049843384,-151.0,0.00027397,7]
[394876670,1764049843393,-151.806196,0.00027397,7]
[394876671,1764049843402,-151.0,0.00027397,7]
[394876672,1764049843411,-151.0,0.00027397,7]
[394876673,1764049843421,-151.0,0.00027397,7]
[394876674,1764049843430,-151.0,0.00027397,7]
[394876675,1764049843439,-151.0,0.00027397,7]
[394876676,1764049843447,-151.0,0.00027397,7]
[394876677,1764049843457,-151.0,0.00027397,7]
[394876678,1764049843465,-151.0,0.00027397,7]
[394876679,1764049843475,-151.0,0.00027397,7]
[394876680,1764049843484,-151.0,0.00027397,7]
[394876681,1764049843493,-151.0,0.00027397,7]
[394876682,1764049843502,-151.0,0.00027397,7]
[394876683,1764049843513,-151.0,0.00027397,7]
[394876684,1764049843523,-151.0,0.00027397,7]
[394876685,1764049843538,-151.0,0.00027397,7]
[394876686,1764049843548,-285.042152,0.00027397,7]
[394876687,1764049843557,-151.0,0.00027397,7]
[394876688,1764049843567,-151.0,0.00027397,7]
[394876689,1764049843576,-151.0,0.00027397,7]
[394876690,1764049843586,-151.0,0.00027397,7]
[394876691,1764049843595,-151.0,0.00027397,7]
[394876692,1764049843605,-151.0,0.00027397,7]
[394876693,1764049843615,-151.0,0.00027397,7]
[394876694,1764049843625,-151.0,0.00027397,7]
[394876695,1764049843635,-301.66782,0.00027397,7]
[394876696,1764049843644,-151.0,0.00027397,7]
[394876697,1764049843653,-151.0,0.00027397,7]
[394876698,1764049843663,-151.0,0.00027397,7]
[394876699,1764049843672,-201.346052,0.00027397,7]
[394876700,1764049843682,-151.0,0.00027397,7]
[394876701,1764049843691,-151.0,0.00027397,7]
[394876702,1764049843700,-151.0,0.00027397,7]
[394876703,1764049843710,-151.0,0.00027397,7]
[394876704,1764049843719,-151.0,0.00027397,7]
[394876705,1764049843728,-151.0,0.00027397,7]
[394876706,1764049843738,-151.0,0.00027397,7]
[394876707,1764049843747,-151.0,0.00027397,7]
[394876708,1764049843756,-178.005344,0.00027397,7]
[394876709,1764049843765,-151.0,0.00027397,7]
[394876710,1764049843775,-151.0,0.00027397,7]
[394876711,1764049843784,-300.786924,0.00027397,7]
[394876712,1764049843794,-300.786924,0.00027397,7]
[394876713,1764049843803,-300.786924,0.00027397,7]
[394876714,1764049843812,-300.786924,0.00027397,7]
[394876715,1764049843822,-300.786924,0.00027397,7]
[394876716,1764049843831,-300.786924,0.00027397,7]
[394876717,1764049843840,-300.786924,0.00027397,7]
[394876719,1764049843850,-300.786924,0.00027397,7]
[394876721,1764049843859,-300.786924,0.00027397,7]
[394876723,1764049843869,-300.786924,0.00027397,7]
[394876725,1764049843878,-300.786924,0.00027397,7]
[394876727,1764049843887,-300.786924,0.00027397,7]
[394876729,1764049843897,-300.786924,0.00027397,7]
[394876730,1764049843906,-300.786924,0.00027397,7]
[394876731,1764049843916,-151.0,0.00027397,7]
[394876732,1764049843925,-300.786924,0.00027397,7]
[394876733,1764049843935,-151.0,0.00027397,7]
[394876734,1764049843944,-300.786924,0.00027397,7]
[394876735,1764049843954,-151.0,0.00027397,7]
[394876736,1764049843964,-300.786924,0.00027397,7]
[394876737,1764049843974,-248.632951,0.00027397,7]
[394876738,1764049843985,-300.786924,0.00027397,7]
[394876739,1764049843995,-300.786924,0.00027397,7]
[394876740,1764049844004,-300.786916,0.00027397,7]
[394876741,1764049844017,-151.0,0.00027397,7]
[394876742,1764049844027,-155.480133,0.00027397,7]
[394876743,1764049844037,-160.12009,0.00027397,7]
[394876744,1764049844047,-151.0,0.00027397,7]
[394876745,1764049844058,-151.0,0.00027397,7]
[394876746,1764049844067,-151.0,0.00027397,7]
[394876747,1764049844077,-151.0,0.00027397,7]
[394876748,1764049844088,-153.633178,0.00027397,7]
[394876749,1764049844098,-151.0,0.00027397,7]
[394876750,1764049844108,-151.0,0.00027397,7]
[394876751,1764049844118,-269.313594,0.00027397,7]
[394876752,1764049844127,-151.0,0.00027397,7]
[394876753,1764049844137,-151.0,0.00027397,7]
[394876754,1764049844147,-151.0,0.00027397,7]
[394876755,1764049844156,-153.617847,0.00027397,7]
[394876756,1764049844166,-151.0,0.00027397,7]
[394876757,1764049844175,-151.0,0.00027397,7]
[394876758,1764049844184,-151.0,0.00027397,7]
[394876759,1764049844194,-151.0,0.00027397,7]
[394876760,1764049844203,-176.79,0.00027397,10]
[394876761,1764049844213,-544.56582898,0.00027397,5]
[394876762,1764049844222,-4839.54,0.00027397,2]
[394876763,1764049844232,-276.18,0.000274,7]
[394876764,1764049844241,-500.0,0.00027662,2]
[394876765,1764049844251,-300.0,0.00027738,2]
[394876766,1764049844261,-2212.31728421,0.00027764,3]
[394876767,1764049844271,-3943.31,0.00027774,2]
[394876768,1764049844281,-1607.59314837,0.00028,2]
[394876769,1764049844291,-1192.0,0.00028879,2]
[394876770,1764049844450,-1600.0,0.0002893,120]
[394876771,1764049844460,-15486.2209895,0.00029089,3]
[394876772,1764049844470,-374.41027667,0.00029099,2]
[394876773,1764049844479,-2754.15015469,0.00029099,2]
[394876774,1764049844488,-500.0,0.00029099,2]
[394876775,1764049844498,-500.0,0.00029099,2]
[394876776,1764049844509,-500.0,0.00029099,2]
[394876777,1764049844519,-500.0,0.00029099,2]
[394876778,1764049844528,-500.0,0.00029099,2]
[394876779,1764049844538,-500.0,0.00029099,2]
[394876780,1764049844548,-500.0,0.00029099,2]
[394876781,1764049844557,-175.16567779,0.00029099,2]
[394876782,1764049844566,-500.0,0.00029099,2]
[394876783,1764049844576,-500.0,0.00029099,2]
[394876785,1764049844585,-500.0,0.00029099,2]
[394876786,1764049844595,-1000.0,0.00029099,2]
[394876787,1764049844605,-500.0,0.00029099,2]
[394876788,1764049844614,-593.80951123,0.00029099,2]
[394876789,1764049844624,-500.0,0.00029099,2]
[394876790,1764049844633,-500.0,0.00029099,2]
[394876791,1764049844642,-500.0,0.00029099,2]
[394876792,1764049844653,-500.0,0.00029099,2]
[394876793,1764049844663,-500.0,0.00029099,2]
[394876794,1764049844673,-500.0,0.00029099,2]
[394876795,1764049844682,-500.0,0.00029099,2]
[394876796,1764049844691,-500.0,0.00029099,2]
[394876797,1764049844702,-500.0,0.00029099,2]
[394876798,1764049844711,-500.0,0.00029099,2]
[394876799,1764049844720,-500.0,0.00029099,2]
[394876800,1764049844730,-500.0,0.00029099,2]
[394876801,1764049844739,-294.73565859,0.00029099,2]
[394876802,1764049844748,-500.0,0.00029099,2]
[394876803,1764049844758,-500.0,0.00029099,2]
[394876804,1764049844767,-500.0,0.00029099,2]
[394876805,1764049844778,-500.0,0.00029099,2]
[394876806,1764049844787,-500.0,0.00029099,2]
[394876807,1764049844797,-500.0,0.00029099,2]
[394876808,1764049844807,-500.0,0.00029099,2]
[394876809,1764049844816,-500.0,0.00029099,2]
[394876810,1764049844826,-500.0,0.00029099,2]
[394876811,1764049844835,-543.09430871,0.00029099,2]
[394876812,1764049844845,-500.0,0.00029099,2]
[394876813,1764049844854,-500.0,0.00029099,2]
[394876814,1764049844864,-518.32634638,0.00029099,2]
[394876815,1764049844874,-500.0,0.00029099,2]
[394876816,1764049844883,-250.0,0.00029099,2]
[394876817,1764049844893,-250.0,0.00029099,2]
[394876818,1764049844902,-500.0,0.00029099,2]
[394876819,1764049844912,-250.0,0.00029099,2]
[394876820,1764049844922,-250.0,0.00029099,2]
[394876821,1764049844931,-500.0,0.00029099,2]
[394876822,1764049844941,-500.0,0.00029099,2]
[394876823,1764049844950,-250.0,0.00029099,2]
[394876824,1764049844959,-500.0,0.00029099,2]
[394876825,1764049844968,-250.0,0.00029099,2]
[394876826,1764049844978,-300.23019455,0.00029099,2]
[394876827,1764049844988,-500.0,0.00029099,2]
[394876828,1764049844997,-250.0,0.00029099,2]
[394876829,1764049845010,-500.0,0.00029099,2]
[394876830,1764049845020,-250.0,0.00029099,2]
[394876831,1764049845030,-360.54232899,0.00029099,2]
[394876832,1764049845179,-213.58622738,0.00029099,2]
[394876833,1764049845188,-156.59254988,0.00029099,2]
[394876834,1764049845199,-343.40745012,0.00029099,2]
[394876835,1764049845209,-250.0,0.00029099,2]
[394876836,1764049845217,-500.0,0.00029099,2]
[394876837,1764049845226,-286.92228996,0.00029099,2]
[394876838,1764049845235,-550.40796257,0.00029099,2]
[394876839,1764049845252,-170.71969278,0.00029099,2]
[394876840,1764049845262,-500.0,0.00029099,2]
[394876841,1764049845271,-500.0,0.00029099,2]
[394876842,1764049845280,-500.0,0.00029099,2]
[394876843,1764049845289,-578.20924308,0.00029099,2]
[394876844,1764049845298,-250.0,0.00029099,2]
[394876845,1764049845307,-250.0,0.00029099,2]
[394876846,1764049845315,-250.0,0.00029099,2]
[394876847,1764049845324,-250.0,0.00029099,2]
[394876848,1764049845333,-250.0,0.00029099,2]
[394876849,1764049845342,-250.0,0.00029099,2]
[394876850,1764049845351,-250.0,0.00029099,2]
[394876851,1764049845360,-250.0,0.00029099,2]
[394876852,1764049845369,-265.89696455,0.00029099,2]
[394876853,1764049845378,-630.01670655,0.00029099,2]
[394876854,1764049845387,-322.6107,0.00029099,2]
[394876855,1764049845396,-500.0,0.00029488,120]
[394876856,1764049845405,-595.37131296,0.00029647,2]
[394876857,1764049845414,-173.12899083,0.00029727,2]
[394876858,1764049845424,-2212.31728421,0.00029884,3]
[394876859,1764049845433,-384.41640838,0.00029894,2]
[394876860,1764049845442,-617.40005154,0.00030195,2]
[394876861,1764049845451,-302.53859704,0.00030468,2]
[394876862,1764049845460,-176.43,0.00030623,2]
[394876863,1764049845470,-640.24385345,0.00030743,2]
[394876864,1764049845479,-1607.59314837,0.00030775,2]
[394876865,1764049845488,-2212.31728421,0.00030896,3]
[394876866,1764049845496,-150.0,0.00030906,2]
[394876867,1764049845505,-150.0,0.00030906,2]